bitfinex/quotes_BTCUSD_20240819
["timestamp","ask_amount","ask_price","bid_price","bid_amount"]
[1724040890745,1.0514438,58776.0,58775.0,0.01700074]
[1724040891542,1.20490094,58776.0,58775.0,0.01700074]
[1724040892361,1.30674733,58776.0,58775.0,0.01700074]
[1724040895333,0.92645533,58776.0,58775.0,0.01700074]
[1724040895590,0.90345533,58776.0,58775.0,0.09616455]
[1724040896004,0.90356342,58776.0,58775.0,0.09616455]
[1724040896179,0.80167459,58776.0,58775.0,0.09616455]
[1724040896390,0.7262518,58776.0,58775.0,0.09616455]
[1724040896847,0.80172964,58776.0,58775.0,0.09616455]
[1724040897056,0.80172964,58776.0,58775.0,0.01736455]
[1724040898109,0.7262518,58776.0,58775.0,0.01736455]
[1724040899876,0.80265732,58776.0,58775.0,0.09736455]
[1724040900092,0.91885732,58776.0,58775.0,0.09736455]
[1724040900305,0.56756443,58776.0,58775.0,0.09736455]
[1724040900522,0.49115891,58776.0,58775.0,0.09736455]
[1724040903270,0.01767091,58776.0,58775.0,0.16016455]
[1724040903502,0.01767091,58776.0,58775.0,0.27926255]
[1724040903926,0.002822,58776.0,58775.0,0.27926255]
[1724040904139,0.002822,58776.0,58775.0,0.16016455]
[1724040904348,0.002822,58776.0,58775.0,0.27926255]
[1724040904596,0.01754689,58776.0,58775.0,0.27926255]
[1724040905236,0.01754689,58776.0,58775.0,0.16016455]
[1724040905437,0.01654689,58776.0,58775.0,0.15516455]
[1724040905640,0.01554689,58776.0,58775.0,0.15716455]
[1724040905865,0.01654689,58776.0,58775.0,0.15716455]
[1724040906070,0.13564289,58776.0,58775.0,0.09436455]
[1724040906289,0.13564289,58776.0,58775.0,0.10136455]
[1724040906290,0.13664289,58776.0,58775.0,0.10136455]
[1724040907323,0.37483489,58776.0,58775.0,0.10136455]
[1724040909427,0.37483489,58776.0,58775.0,0.02136455]
[1724040909428,0.61302689,58776.0,58775.0,0.02136455]
[1724040910500,0.66400233,58776.0,58775.0,0.02136455]
[1724040910963,0.72922689,58776.0,58775.0,0.02136455]
[1724040911813,0.72922689,58776.0,58775.0,0.16346455]
[1724040912274,0.01754689,58776.0,58775.0,0.16346455]
[1724040912689,0.13664289,58776.0,58775.0,0.16346455]
[1724040913332,0.01754689,58776.0,58775.0,0.16346455]
[1724040914180,0.13664289,58776.0,58775.0,0.16346455]
[1724040915036,0.37483489,58776.0,58775.0,0.16346455]
[1724040915244,0.49103489,58776.0,58775.0,0.02136455]
[1724040915657,0.54205109,58776.0,58775.0,0.02136455]
[1724040916643,0.49103489,58776.0,58775.0,0.02136455]
[1724040916876,0.37483489,58776.0,58775.0,0.09836455]
[1724040917610,0.4258621,58776.0,58775.0,0.09836455]
[1724040918295,0.0685741,58776.0,58775.0,0.16446455]
[1724040918531,0.01754689,58776.0,58775.0,0.16446455]
[1724040919743,0.13664289,58776.0,58775.0,0.16446455]
[1724040920015,0.13664289,58776.0,58775.0,0.09836455]
[1724040920016,0.37483489,58776.0,58775.0,0.09836455]
[1724040920259,0.37483489,58776.0,58775.0,0.02136455]
[1724040920757,0.61302689,58776.0,58775.0,0.02136455]
[1724040921294,0.42586767,58776.0,58775.0,0.02136455]
[1724040922233,0.37483489,58776.0,58775.0,0.02136455]
[1724040923437,0.42587018,58776.0,58775.0,0.02136455]
[1724040923919,0.37483489,58776.0,58775.0,0.02136455]
[1724040924830,0.37483489,58776.0,58775.0,0.16206455]
[1724040926115,0.01754689,58776.0,58775.0,0.28116255]
[1724040928932,0.01754689,58776.0,58775.0,0.16206455]
[1724040929141,0.01754689,58776.0,58775.0,0.09816455]
[1724040929406,0.25284289,58776.0,58775.0,0.02136455]
[1724040929585,0.31544289,58776.0,58775.0,0.02136455]
[1724040929806,0.25284289,58776.0,58775.0,0.02136455]
[1724040930009,0.01754689,58776.0,58775.0,0.02136455]
[1724040930660,0.13664289,58776.0,58775.0,0.02136455]
[1724040934145,0.13664289,58776.0,58775.0,0.16756455]
[1724040936076,0.13664289,58776.0,58775.0,0.10366455]
[1724040939083,0.13664289,58776.0,58775.0,0.09866455]
[1724040944759,0.37483489,58776.0,58775.0,0.09866455]
[1724040944976,0.37483489,58776.0,58775.0,0.01636455]
[1724040945396,0.13664289,58776.0,58775.0,0.01636455]
[1724040945603,0.18770378,58776.0,58775.0,0.01636455]
[1724040947405,0.42589578,58776.0,58775.0,0.01636455]
[1724040947828,0.78028778,58776.0,58775.0,0.01636455]
[1724040948878,0.78030378,58776.0,58775.0,0.01636455]
[1724040950143,0.42591178,58776.0,58775.0,0.09486455]
[1724040954892,0.42591178,58776.0,58775.0,0.01636455]
[1724040955100,0.45145023,58776.0,58775.0,0.01636455]
[1724040955313,0.45145224,58776.0,58775.0,0.01636455]
[1724040955932,0.86924424,58776.0,58775.0,0.01636455]
[1724040956371,1.06923834,58776.0,58775.0,0.01636455]
[1724040956579,1.30743034,58776.0,58775.0,0.01636455]
[1724040956791,1.3606811,58776.0,58775.0,0.01636455]
[1724040956998,1.3606811,58776.0,58775.0,0.01600074]
[1724040957203,1.30743034,58776.0,58775.0,0.01600074]
[1724040957462,1.30743034,58776.0,58775.0,0.00936455]
[1724040957463,1.30643034,58776.0,58775.0,0.00936455]
[1724040957674,1.39698026,58776.0,58775.0,0.01300074]
[1724040957893,1.51340516,58776.0,58775.0,0.01300074]
[1724040958124,1.77459716,58776.0,58775.0,0.00900074]
[1724040958340,1.77459716,58776.0,58775.0,0.00200074]
[1724040958341,1.90092799,58776.0,58775.0,0.00200074]
[1724040958553,1.90092799,58776.0,58775.0,0.00500074]
[1724040958760,1.90092799,58776.0,58775.0,0.00800074]
[1724040959172,1.90092799,58776.0,58775.0,0.00500074]
[1724040959379,1.91092799,58776.0,58775.0,0.00600074]
[1724040959583,1.90792799,58776.0,58775.0,0.00600074]
[1724040959783,1.89792799,58776.0,58775.0,0.00200074]
[1724040960012,1.90792799,58776.0,58775.0,0.00300074]
[1724040961319,1.90892799,58776.0,58775.0,0.00300074]
[1724040961525,2.08897116,58776.0,58775.0,0.00400074]
[1724040963225,1.91692799,58776.0,58775.0,0.00400074]
[1724040964087,1.91792799,58776.0,58775.0,0.00400074]
[1724040964295,1.91992799,58776.0,58775.0,0.00400074]
[1724040965716,1.91692799,58776.0,58775.0,0.00400074]
[1724040966860,1.91792799,58776.0,58775.0,0.00400074]
[1724040967067,1.91992799,58776.0,58775.0,0.00400074]
[1724040968484,2.07263922,58776.0,58775.0,0.00400074]
[1724040968714,1.91992799,58776.0,58775.0,0.00400074]
[1724040969087,2.15811999,58776.0,58775.0,0.00400074]
[1724040969436,2.07261382,58776.0,58775.0,0.00400074]
[1724040969635,2.07425001,58776.0,58775.0,0.00400074]
[1724040969864,2.30325793,58776.0,58775.0,0.00400074]
[1724040970248,2.15586299,58776.0,58775.0,0.00400074]
[1724040971253,1.91767099,58776.0,58775.0,0.00400074]
[1724040971840,1.88934016,58776.0,58775.0,0.00400074]
[1724040972034,1.88292409,58776.0,58775.0,0.00400074]
[1724040972284,1.88292409,58776.0,58775.0,0.00355053]
[1724040972285,1.88927884,58776.0,58775.0,0.00355053]
[1724040972487,1.88927899,58776.0,58775.0,0.00355053]
[1724040973389,1.89127899,58776.0,58775.0,0.00355053]
[1724040973532,2.1234825,58776.0,58775.0,0.00355053]
[1724040973740,2.1254825,58776.0,58775.0,0.00355053]
[1724040974615,2.29727217,58776.0,58775.0,0.00214533]
[1724040974818,2.29727217,58776.0,58772.0,0.009042]
[1724040974819,1.07655419,58773.0,58772.0,0.009042]
[1724040974932,1.85441471,58773.0,58772.0,0.009042]
[1724040975136,1.86656393,58773.0,58772.0,0.009042]
[1724040975355,2.10476793,58773.0,58772.0,0.009042]
[1724040975563,1.86256393,58773.0,58772.0,0.009042]
[1724040975967,1.86856393,58773.0,58772.0,0.010042]
[1724040976210,1.87756393,58773.0,58772.0,0.011042]
[1724040977711,1.87356393,58773.0,58772.0,0.011042]
[1724040978486,1.87943904,58773.0,58772.0,0.011042]
[1724040978911,1.87426267,58773.0,58772.0,0.011042]
[1724040980446,2.04581721,58773.0,58772.0,0.011042]
[1724040980655,1.7217368,58773.0,58772.0,0.011042]
[1724040980866,1.72110061,58773.0,58772.0,0.011042]
[1724040981071,1.73139971,58773.0,58772.0,0.011042]
[1724040983489,1.73291008,58773.0,58772.0,0.00993781]
[1724040986948,1.70202431,58773.0,58772.0,0.00993781]
[1724040987357,1.34762031,58773.0,58772.0,0.08933781]
[1724040987568,1.44082031,58773.0,58772.0,0.08933781]
[1724040987836,1.31370698,58773.0,58772.0,0.08933781]
[1724040988054,1.31622293,58773.0,58772.0,0.08933781]
[1724040988264,1.44334946,58773.0,58772.0,0.08933781]
[1724040988669,1.46634946,58773.0,58772.0,0.08933781]
[1724040990636,1.46649212,58773.0,58772.0,0.08933781]
[1724040991285,1.33931949,58773.0,58772.0,0.08933781]
[1724040992841,1.33898478,58773.0,58772.0,0.08933781]
[1724040996611,1.33980678,58773.0,58772.0,0.08933781]
[1724040998409,1.49250154,58773.0,58772.0,0.08933781]
[1724040999289,1.48697329,58773.0,58772.0,0.08933781]
[1724041000573,1.48697329,58773.0,58772.0,0.00993781]
[1724041000966,1.37077329,58773.0,58772.0,0.00993781]
[1724041001301,1.37077329,58773.0,58772.0,0.08523781]
[1724041001302,1.48697329,58773.0,58772.0,0.08523781]
[1724041001738,1.10956929,58773.0,58772.0,0.14990162]
[1724041001981,0.75253732,58773.0,58772.0,0.14990162]
[1724041002782,0.74753732,58773.0,58772.0,0.14890162]
[1724041003003,0.69429299,58773.0,58772.0,0.14890162]
[1724041003210,0.68829299,58773.0,58772.0,0.14790162]
[1724041003413,0.7904046,58773.0,58772.0,0.14790162]
[1724041003635,0.81591584,58773.0,58772.0,0.14790162]
[1724041004001,0.81591584,58773.0,58772.0,0.14753781]
[1724041004002,1.0400321,58773.0,58772.0,0.14753781]
[1724041004208,1.11631242,58773.0,58772.0,0.00793781]
[1724041004411,1.54549687,58773.0,58772.0,0.00793781]
[1724041004611,1.64549687,58773.0,58772.0,0.00793781]
[1724041005526,1.88370087,58773.0,58772.0,0.00793781]
[1724041005850,1.64549687,58773.0,58772.0,0.00793781]
[1724041008151,1.81705141,58773.0,58772.0,0.00793781]
[1724041010466,1.64549687,58773.0,58772.0,0.00793781]
[1724041012940,1.64549687,58773.0,58772.0,0.08403781]
[1724041015164,1.64549687,58773.0,58772.0,0.00793781]
[1724041015567,2.05605127,58773.0,58772.0,0.00793781]
[1724041015973,2.12215127,58773.0,58772.0,0.00793781]
[1724041016180,1.71159687,58773.0,58772.0,0.00793781]
[1724041017185,2.02870087,58773.0,58772.0,0.00793781]
[1724041017387,2.03170087,58773.0,58772.0,0.00793781]
[1724041017634,2.02870087,58773.0,58772.0,0.00793781]
[1724041018491,1.94980087,58773.0,58772.0,0.00793781]
[1724041019747,1.86696406,58773.0,58772.0,0.00793781]
[1724041019947,1.93294886,58773.0,58772.0,0.00793781]
[1724041020548,2.00697367,58773.0,58772.0,0.00793781]
[1724041020729,1.93294886,58773.0,58772.0,0.00793781]
[1724041021850,1.62864486,58773.0,58772.0,0.00793781]
[1724041022467,1.86684886,58773.0,58772.0,0.00793781]
[1724041022672,2.10298784,58773.0,58772.0,0.00793781]
[1724041022911,1.93064886,58773.0,58772.0,0.00793781]
[1724041023121,2.1022034,58773.0,58772.0,0.00793781]
[1724041023272,1.86390836,58773.0,58772.0,0.00793781]
[1724041023848,2.18441236,58773.0,58772.0,0.00793781]
[1724041024253,2.18141236,58773.0,58772.0,0.00793781]
[1724041024365,2.00985782,58773.0,58772.0,0.00793781]
[1724041024571,2.00985782,58773.0,58772.0,0.00893781]
[1724041024572,1.93655782,58773.0,58772.0,0.00893781]
[1724041024765,1.94255782,58773.0,58772.0,0.00993781]
[1724041024987,1.93655782,58773.0,58772.0,0.00893781]
[1724041025187,1.93655782,58773.0,58772.0,0.00793781]
[1724041025188,2.10211236,58773.0,58772.0,0.00793781]
[1724041026565,2.10811236,58773.0,58772.0,0.00993781]
[1724041026776,2.11411236,58773.0,58772.0,0.00993781]
[1724041027144,1.94255782,58773.0,58772.0,0.00993781]
[1724041027346,1.87875782,58773.0,58772.0,0.00993781]
[1724041028135,1.64055382,58773.0,58772.0,0.00993781]
[1724041028341,1.64055382,58773.0,58772.0,0.08853781]
[1724041028557,1.74622724,58773.0,58772.0,0.00993781]
[1724041029228,1.68432724,58773.0,58772.0,0.00993781]
[1724041029428,1.44612324,58773.0,58772.0,0.00993781]
[1724041030947,1.44612324,58773.0,58772.0,0.08523781]
[1724041032071,1.44612324,58773.0,58772.0,0.14553781]
[1724041032222,1.44886609,58773.0,58772.0,0.08523781]
[1724041032633,1.44886609,58773.0,58772.0,0.00993781]
[1724041034993,1.68707009,58773.0,58772.0,0.00993781]
[1724041035197,1.44886609,58773.0,58772.0,0.00993781]
[1724041035342,1.44886609,58773.0,58772.0,0.14553781]
[1724041035752,1.62123292,58773.0,58772.0,0.14553781]
[1724041036787,1.44886609,58773.0,58772.0,0.14553781]
[1724041036987,1.62123241,58773.0,58772.0,0.14553781]
[1724041037192,1.62124028,58773.0,58772.0,0.14553781]
[1724041041309,1.62150251,58773.0,58772.0,0.14553781]
[1724041041794,1.62141031,58773.0,58772.0,0.14553781]
[1724041043732,1.21081796,58773.0,58772.0,0.14553781]
[1724041044227,1.44902196,58773.0,58772.0,0.14553781]
[1724041046487,1.21081796,58773.0,58772.0,0.14553781]
[1724041046660,1.08781796,58773.0,58772.0,0.14590162]
[1724041047085,1.10427841,58773.0,58772.0,0.14590162]
[1724041047247,0.95106493,58773.0,58772.0,0.14590162]
[1724041048241,0.94506493,58773.0,58772.0,0.14490162]
[1724041048694,1.10327841,58773.0,58772.0,0.14490162]
[1724041048900,1.10327841,58773.0,58772.0,0.00893781]
[1724041048901,1.18397841,58773.0,58772.0,0.00893781]
[1724041049169,1.26056524,58773.0,58772.0,0.00793781]
[1724041049399,1.86355548,58773.0,58772.0,0.00793781]
[1724041049595,1.86855548,58773.0,58772.0,0.00793781]
[1724041049747,1.87854926,58773.0,58772.0,0.00793781]
[1724041049947,1.87354926,58773.0,58772.0,0.00793781]
[1724041050114,1.74996702,58773.0,58772.0,0.00793781]
[1724041050576,1.74230992,58773.0,58772.0,0.00793781]
[1724041050816,1.73930992,58773.0,58772.0,0.00793781]
[1724041051023,1.74930992,58773.0,58772.0,0.00793781]
[1724041051260,1.74430992,58773.0,58772.0,0.00793781]
[1724041051694,1.75030992,58773.0,58772.0,0.00893781]
[1724041051931,1.75294611,58773.0,58772.0,0.00893781]
[1724041052144,1.75094611,58773.0,58772.0,0.00893781]
[1724041052366,1.74594611,58773.0,58772.0,0.00893781]
[1724041052829,1.57130992,58773.0,58772.0,0.00893781]
[1724041053041,1.43941214,58773.0,58772.0,0.00893781]
[1724041053530,1.67761614,58773.0,58772.0,0.00893781]
[1724041057066,1.43941214,58773.0,58772.0,0.00893781]
[1724041057555,1.43941214,58773.0,58772.0,0.14643781]
[1724041057556,1.41641214,58773.0,58772.0,0.14643781]
[1724041058709,1.43941214,58773.0,58772.0,0.14643781]
[1724041058913,1.43941214,58773.0,58772.0,0.14680162]
[1724041058914,1.20120814,58773.0,58772.0,0.14680162]
[1724041059168,1.06190814,58773.0,58772.0,0.14680162]
[1724041059321,1.17820814,58773.0,58772.0,0.14680162]
[1724041060294,1.19905405,58773.0,58772.0,0.14680162]
[1724041060423,1.08275405,58773.0,58772.0,0.14680162]
[1724041060825,1.219315,58773.0,58772.0,0.14680162]
[1724041061119,1.08275405,58773.0,58772.0,0.14680162]
[1724041062149,1.21913616,58773.0,58772.0,0.14680162]
[1724041063330,1.08275405,58773.0,58772.0,0.14680162]
[1724041064567,1.08275405,58773.0,58772.0,0.14643781]
[1724041064973,1.08275405,58773.0,58772.0,0.14680162]
[1724041065107,1.21876347,58773.0,58772.0,0.14680162]
[1724041065304,1.06558126,58773.0,58772.0,0.14680162]
[1724041065689,1.30378526,58773.0,58772.0,0.14680162]
[1724041065893,1.06558126,58773.0,58772.0,0.14680162]
[1724041066108,1.44258526,58773.0,58772.0,0.00893781]
[1724041066376,1.46558526,58773.0,58772.0,0.00893781]
[1724041066872,1.70378926,58773.0,58772.0,0.00893781]
[1724041068471,1.70678926,58773.0,58772.0,0.00893781]
[1724041068645,1.87779621,58773.0,58772.0,0.00893781]
[1724041068865,1.70678926,58773.0,58772.0,0.00893781]
[1724041069149,1.70378926,58773.0,58772.0,0.00893781]
[1724041070512,1.94199326,58773.0,58772.0,0.00893781]
[1724041072641,1.95211397,58773.0,58772.0,0.00893781]
[1724041072825,1.75290658,58773.0,58772.0,0.00893781]
[1724041073028,1.94496548,58773.0,58772.0,0.00893781]
[1724041077627,1.62976148,58773.0,58772.0,0.00893781]
[1724041077801,1.56796148,58773.0,58772.0,0.00893781]
[1724041079679,1.73005674,58773.0,58772.0,0.00893781]
[1724041079885,1.49185274,58773.0,58772.0,0.00893781]
[1724041080295,1.46885274,58773.0,58772.0,0.15453781]
[1724041080500,1.46885274,58773.0,58772.0,0.14953781]
[1724041080702,1.29663677,58773.0,58772.0,0.14953781]
[1724041080899,1.29983749,58773.0,58772.0,0.14953781]
[1724041081301,1.29983749,58773.0,58772.0,0.14990162]
[1724041081573,1.3207754,58773.0,58772.0,0.14990162]
[1724041081777,1.16766403,58773.0,58772.0,0.14990162]
[1724041082705,1.28396403,58773.0,58772.0,0.14990162]
[1724041083958,1.30696403,58773.0,58772.0,0.14953781]
[1724041085324,1.30696403,58773.0,58772.0,0.08463781]
[1724041088406,1.30696403,58773.0,58772.0,0.08500162]
[1724041089134,1.20696403,58773.0,58772.0,0.08500162]
[1724041089341,0.90650509,58773.0,58772.0,0.14790162]
[1724041089600,0.7789446,58773.0,58772.0,0.14790162]
[1724041089902,0.88099928,58773.0,58772.0,0.14790162]
[1724041091049,0.17417174,58773.0,58772.0,0.14790162]
[1724041091257,0.36135444,58773.0,58772.0,0.14790162]
[1724041091461,0.12315044,58773.0,58772.0,0.14790162]
[1724041092069,0.36135444,58773.0,58772.0,0.14790162]
[1724041093900,0.59955844,58773.0,58772.0,0.14790162]
[1724041094296,0.95129755,58773.0,58772.0,0.14790162]
[1724041094497,1.00231885,58773.0,58772.0,0.14790162]
[1724041095484,1.00231885,58773.0,58772.0,0.14753781]
[1724041095684,1.00231885,58773.0,58772.0,0.08463781]
[1724041095860,1.05082716,58773.0,58772.0,0.00393781]
[1724041096070,0.97429755,58773.0,58772.0,0.00393781]
[1724041096270,1.17031766,58773.0,58772.0,0.00393781]
[1724041096496,1.24948847,58773.0,58772.0,0.00393781]
[1724041097051,1.0963771,58773.0,58772.0,0.00393781]
[1724041098486,1.09300365,58773.0,58772.0,0.00393781]
[1724041104112,1.43120765,58773.0,58772.0,0.00393781]
[1724041104300,1.6458201,58773.0,58772.0,0.00393781]
[1724041106802,1.7122201,58773.0,58772.0,0.00393781]
[1724041107455,1.88377464,58773.0,58772.0,0.00393781]
[1724041107752,1.7122201,58773.0,58772.0,0.00393781]
[1724041110850,1.71148843,58773.0,58772.0,0.00393781]
[1724041112476,1.71149153,58773.0,58772.0,0.00393781]
[1724041114497,1.82779153,58773.0,58772.0,0.00393781]
[1724041116507,1.74609153,58773.0,58772.0,0.00393781]
[1724041116684,1.67969153,58773.0,58772.0,0.00393781]
[1724041116894,1.67969153,58773.0,58772.0,0.08213781]
[1724041120805,1.56339153,58773.0,58772.0,0.08213781]
[1724041120981,1.6994805,58773.0,58772.0,0.08213781]
[1724041121186,1.54654065,58773.0,58772.0,0.08213781]
[1724041122728,1.6994805,58773.0,58772.0,0.08213781]
[1724041124173,1.83436895,58773.0,58772.0,0.08213781]
[1724041126494,1.6814291,58773.0,58772.0,0.08213781]
[1724041127342,1.83440246,58773.0,58772.0,0.08213781]
[1724041129207,1.69951401,58773.0,58772.0,0.08213781]
[1724041137448,1.68260081,58773.0,58772.0,0.08213781]
[1724041137843,1.32809681,58773.0,58772.0,0.08250162]
[1724041138070,1.30833665,58773.0,58772.0,0.08250162]
[1724041141060,1.44704727,58773.0,58772.0,0.08250162]
[1724041141262,1.46155599,58773.0,58772.0,0.08250162]
[1724041141400,1.44643951,58773.0,58772.0,0.08250162]
[1724041142279,1.59968279,58773.0,58772.0,0.08250162]
[1724041142484,1.44643951,58773.0,58772.0,0.08250162]
[1724041142750,1.59970053,58773.0,58772.0,0.08250162]
[1724041143618,1.60499013,58773.0,58772.0,0.08250162]
[1724041144067,1.45172537,58773.0,58772.0,0.08250162]
[1724041144467,1.45172537,58773.0,58772.0,0.08213781]
[1724041145059,1.45172537,58773.0,58772.0,0.00393781]
[1724041145594,1.68992937,58773.0,58772.0,0.00393781]
[1724041145821,1.77222937,58773.0,58772.0,0.00393781]
[1724041146651,1.8557921,58773.0,58772.0,0.00393781]
[1724041146997,1.83272937,58773.0,58772.0,0.00393781]
[1724041147211,2.07456956,58773.0,58772.0,0.00393781]
[1724041147410,2.07556956,58773.0,58772.0,0.00393781]
[1724041147805,2.07156956,58773.0,58772.0,0.00393781]
[1724041147988,2.2431241,58773.0,58772.0,0.00393781]
[1724041148206,2.2471241,58773.0,58772.0,0.00393781]
[1724041148748,2.2431241,58773.0,58772.0,0.00393781]
[1724041148951,2.2421241,58773.0,58772.0,0.00393781]
[1724041149164,2.2341241,58773.0,58772.0,0.00293781]
[1724041149374,2.2361241,58773.0,58772.0,0.00293781]
[1724041149575,2.2591241,58773.0,58772.0,0.00293781]
[1724041149801,2.2471241,58773.0,58772.0,0.00293781]
[1724041150342,2.07856956,58773.0,58772.0,0.00293781]
[1724041150681,2.09256956,58773.0,58772.0,0.00293781]
[1724041151261,2.09256956,58773.0,58770.0,0.2]
[1724041151262,1.37500219,58771.0,58770.0,0.2]
[1724041151389,1.95100989,58771.0,58770.0,0.2]
[1724041151599,2.05579691,58771.0,58770.0,0.2]
[1724041152181,1.96111407,58771.0,58770.0,0.2]
[1724041152387,1.97411407,58771.0,58770.0,0.2]
[1724041153318,1.98811407,58771.0,58770.0,0.2]
[1724041154340,1.072026,58767.0,58766.0,0.009042]
[1724041154454,1.84017331,58767.0,58766.0,0.009042]
[1724041154703,1.96917974,58767.0,58766.0,0.009042]
[1724041154907,1.97927472,58767.0,58766.0,0.009042]
[1724041155464,1.826187,58767.0,58766.0,0.009042]
[1724041155641,1.836187,58767.0,58766.0,0.009042]
[1724041155999,1.847187,58767.0,58766.0,0.009042]
[1724041156203,1.826187,58767.0,58766.0,0.009042]
[1724041156401,1.838187,58767.0,58766.0,0.009042]
[1724041156621,1.852187,58767.0,58766.0,0.009042]
[1724041157025,1.84143858,58767.0,58766.0,0.009042]
[1724041157390,1.85242663,58767.0,58766.0,0.009042]
[1724041158032,1.84042663,58767.0,58766.0,0.009042]
[1724041158439,1.85242663,58767.0,58766.0,0.009042]
[1724041158687,1.86642663,58767.0,58766.0,0.009042]
[1724041160288,1.71335041,58767.0,58766.0,0.009042]
[1724041161339,1.723663,58767.0,58766.0,0.009042]
[1724041161541,1.72372228,58767.0,58766.0,0.009042]
[1724041162187,2.00398453,58767.0,58766.0,0.009042]
[1724041162395,1.87674505,58767.0,58766.0,0.009042]
[1724041162589,1.72372228,58767.0,58766.0,0.009042]
[1724041162787,1.89527682,58767.0,58766.0,0.009042]
[1724041163963,2.04829959,58767.0,58766.0,0.009042]
[1724041164136,2.02343938,58767.0,58766.0,0.009042]
[1724041164696,2.01143938,58767.0,58766.0,0.009042]
[1724041164915,2.02543938,58767.0,58766.0,0.009042]
[1724041166001,1.99743938,58767.0,58766.0,0.009042]
[1724041166198,1.99687548,58767.0,58766.0,0.009042]
[1724041166424,2.01087548,58767.0,58766.0,0.009042]
[1724041166888,1.76171361,58767.0,58766.0,0.009042]
[1724041167526,1.77471361,58767.0,58766.0,0.009042]
[1724041167727,1.77571361,58767.0,58766.0,0.009042]
[1724041167932,1.77471361,58767.0,58766.0,0.009042]
[1724041168159,1.77571361,58767.0,58766.0,0.009042]
[1724041169893,1.77471361,58767.0,58766.0,0.009042]
[1724041170907,1.71594361,58767.0,58766.0,0.009042]
[1724041171109,1.77434257,58767.0,58766.0,0.009042]
[1724041171825,1.59614257,58767.0,58766.0,0.009042]
[1724041172010,1.58582998,58767.0,58766.0,0.090142]
[1724041172136,1.70212998,58767.0,58766.0,0.090142]
[1724041172740,1.70212998,58767.0,58766.0,0.009042]
[1724041172741,1.76632998,58767.0,58766.0,0.009042]
[1724041173058,1.76932998,58767.0,58766.0,0.009042]
[1724041174116,2.00755798,58767.0,58766.0,0.009042]
[1724041174385,2.17723021,58767.0,58766.0,0.009042]
[1724041174596,2.25493021,58767.0,58766.0,0.009042]
[1724041174826,2.30862818,58767.0,58766.0,0.009042]
[1724041175028,2.30662818,58767.0,58766.0,0.009042]
[1724041175246,2.29268604,58767.0,58766.0,0.009042]
[1724041175963,2.27868604,58767.0,58766.0,0.009042]
[1724041176169,2.29268604,58767.0,58766.0,0.009042]
[1724041176328,2.29468604,58767.0,58766.0,0.009042]
[1724041176734,2.30868604,58767.0,58766.0,0.009042]
[1724041177165,2.29668604,58767.0,58766.0,0.009042]
[1724041177485,2.31068604,58767.0,58766.0,0.009042]
[1724041180376,2.13862754,58767.0,58766.0,0.009042]
[1724041180608,2.31071409,58767.0,58766.0,0.009042]
[1724041180986,2.13862754,58767.0,58766.0,0.009042]
[1724041181966,2.12462754,58767.0,58766.0,0.009042]
[1724041182428,2.13862754,58767.0,58766.0,0.009042]
[1724041182666,2.12462754,58767.0,58766.0,0.009042]
[1724041183521,2.13862754,58767.0,58766.0,0.009042]
[1724041184169,2.12462754,58767.0,58766.0,0.009042]
[1724041184303,2.13862754,58767.0,58766.0,0.009042]
[1724041185156,1.072174,58759.0,58758.0,0.009042]
[1724041185358,1.69114842,58759.0,58758.0,0.009042]
[1724041185557,1.70114412,58759.0,58758.0,0.009042]
[1724041186348,1.71814412,58759.0,58758.0,0.009042]
[1724041186944,1.70114412,58759.0,58758.0,0.009042]
[1724041187119,1.71114412,58759.0,58758.0,0.009042]
[1724041187320,1.69247552,58759.0,58758.0,0.009042]
[1724041187841,1.68347552,58759.0,58758.0,0.009042]
[1724041188190,1.67347552,58759.0,58758.0,0.009042]
[1724041188390,1.74165103,58759.0,58758.0,0.009042]
[1724041188593,1.75165103,58759.0,58758.0,0.009042]
[1724041188915,1.68347552,58759.0,58758.0,0.009042]
[1724041189115,1.69247552,58759.0,58758.0,0.009042]
[1724041192230,1.93073652,58759.0,58758.0,0.009042]
[1724041192552,2.1632081,58759.0,58758.0,0.009042]
[1724041193167,2.1542081,58759.0,58758.0,0.009042]
[1724041193392,2.14369106,58759.0,58758.0,0.009042]
[1724041193564,2.15186901,58759.0,58758.0,0.009042]
[1724041193888,2.04656901,58759.0,58758.0,0.009042]
[1724041194189,2.10246901,58759.0,58758.0,0.009042]
[1724041194393,1.74870069,58759.0,58758.0,0.009042]
[1724041194525,1.84200069,58759.0,58758.0,0.154342]
[1724041194729,1.66965347,58759.0,58758.0,0.154342]
[1724041196010,1.69265347,58759.0,58758.0,0.154342]
[1724041198100,1.69621739,58759.0,58758.0,0.154342]
[1724041200401,1.34165639,58759.0,58758.0,0.154342]
[1724041200611,1.19669539,58759.0,58758.0,0.15470581]
[1724041200835,1.43495639,58759.0,58758.0,0.15470581]
[1724041201233,1.43477072,58759.0,58758.0,0.15470581]
[1724041201663,1.42477072,58759.0,58758.0,0.15470581]
[1724041202073,1.42577072,58759.0,58758.0,0.15470581]
[1724041202273,1.07120972,58759.0,58758.0,0.15470581]
[1724041202475,1.17650972,58759.0,58758.0,0.15470581]
[1724041202902,1.17750972,58759.0,58758.0,0.15470581]
[1724041203102,0.84622684,58759.0,58758.0,0.15470581]
[1724041203309,1.05115787,58759.0,58758.0,0.15470581]
[1724041203514,1.17808895,58759.0,58758.0,0.15470581]
[1724041203912,1.41634995,58759.0,58758.0,0.15470581]
[1724041204344,1.41634995,58759.0,58758.0,0.154342]
[1724041204694,1.41534995,58759.0,58758.0,0.154342]
[1724041205096,1.41534995,58759.0,58758.0,0.155342]
[1724041205279,1.41534995,58759.0,58758.0,0.15570581]
[1724041205481,1.41434995,58759.0,58758.0,0.154342]
[1724041205681,1.2881357,58759.0,58758.0,0.154342]
[1724041205888,1.43882478,58759.0,58758.0,0.154342]
[1724041206115,1.43882478,58759.0,58758.0,0.089242]
[1724041206325,1.43882478,58759.0,58758.0,0.090242]
[1724041206563,1.61125089,58759.0,58758.0,0.090242]
[1724041206752,1.43882478,58759.0,58758.0,0.090242]
[1724041206962,1.43982478,58759.0,58758.0,0.090242]
[1724041207170,1.43882478,58759.0,58758.0,0.090242]
[1724041208043,1.43882478,58759.0,58758.0,0.089242]
[1724041208451,1.43982478,58759.0,58758.0,0.089242]
[1724041208626,1.44082478,58759.0,58758.0,0.089242]
[1724041210129,1.61325089,58759.0,58758.0,0.089242]
[1724041210775,1.61325089,58759.0,58758.0,0.009042]
[1724041213088,1.58512478,58759.0,58758.0,0.009042]
[1724041213265,1.82338578,58759.0,58758.0,0.009042]
[1724041214256,1.82238578,58759.0,58758.0,0.009042]
[1724041214461,1.82838578,58759.0,58758.0,0.009042]
[1724041214728,1.81794976,58759.0,58758.0,0.009042]
[1724041214932,1.81094976,58759.0,58758.0,0.009042]
[1724041215295,1.82394976,58759.0,58758.0,0.009042]
[1724041215472,1.81694976,58759.0,58758.0,0.009042]
[1724041215873,1.82394976,58759.0,58758.0,0.009042]
[1724041217459,2.06221076,58759.0,58758.0,0.009042]